[Event "1st FIDE Olympiad DIS 2023"]
[Site "Belgrade"]
[Date "2023.01.31"]
[Round "2.8"]
[White "Zhukovskaya, Nina"]
[Black "Rivas Cabrera, Edgar"]
[Result "0-1"]
[ECO "A24"]
[WhiteElo "1474"]
[BlackElo "1987"]
[Annotator "TA"]
[PlyCount "116"]
[EventDate "2023.01.30"]
[EventType "team-tourn"]
[EventCountry "SRB"]
[SourceTitle "playchess.com"]
[Source "ChessBase"]
[SourceQuality "1"]
[WhiteTeam "Kazakhstan"]
[BlackTeam "Venezuela"]
[WhiteTeamCountry "KAZ"]
[BlackTeamCountry "VEN"]
[TimeControl "40/5400+30:1800+30"]

{[%evp 16,116,0,4,14,7,3,-39,11,-44,-35,-62,-61,-58,-49,-107,-109,-100,-100,-95,-135,-117,-57,-55,-52,-79,-44,-46,0,-52,-10,-16,-9,-118,227,239,241,-145,-143,-153,-138,-239,-238,-246,-225,-228,-153,-418,-419,-496,-210,-557,-550,-520,-544,-675,-618,-727,-702,-662,-443,-679,-668,-658,-647,-999,-926,-885,-821,-867,-846,-850,-864,-956,-956,-1768,-1698,-6711,-6620,-29968,-29967,-6828,-6170,-29977,-29976,-29982,-29983,-29983,-29984,-29982,-29983,-29983,-29984,-29984,-29985,-29986,-29987,-29987,-29988,-29989,-29989,-29990,-29990]} 1. c4 {[%emt 0:00:04]} Nf6 {[%emt 0:00:09]} 2. Nc3 {[%emt 0:00:11]} g6 {[%emt 0:00:11]} 3. d3 {[%emt 0:00:12]} Bg7 {[%emt 0:00:19]} 4. Bd2 {[%emt 0:00:23]} e5 {[%emt 0:00:35]} 5. Rb1 {[%emt 0:00:28]} d6 {[%emt 0:00:26]} 6. g3 {[%emt 0:00:19]} c6 {[%emt 0:00:37]} 7. Bg2 {[%emt 0:00:12]} Nbd7 {[%emt 0:00:14]} 8. Nf3 {[%emt 0:00:13]} O-O {[%emt 0:00:07]} 9. O-O {[%emt 0:00:16]} Re8 {[%emt 0:04:01] A24: English Opening vs King's Indian: Lines without ...Nc6.} 10. b4 {[%emt 0:01:23]} d5 {[%emt 0:09:33] [#]} 11. e3 $146 {[%emt 0:07:37]} ({Predecessor:} 11. cxd5 cxd5 12. Qb3 Nb6 13. a4 d4 14. Nd1 Be6 15. Qa3 Bd5 16. a5 Nc8 17. Nb2 {1-0 Hecko,D (2107)-Gazikova,V (2093) SVK-chT1W 1314 2013 (2.8)}) 11... b6 {[%emt 0:06:51]} (11... dxc4 $15 12. dxc4 e4) 12. Ne1 {[%emt 0:02:29]} (12. b5 $11) 12... Bb7 {[%emt 0:01:54]} 13. b5 {[%emt 0:04:40] Strongly threatening bxc6.} Nc5 {[%emt 0:02:48][%cal Bd7c5,Bc5e4,Be4c3][%mdl 32]} 14. bxc6 {[%emt 0:07:47]} Bxc6 {[%emt 0:02:12]} 15. d4 {[%emt 0:10:35]} (15. cxd5 $15 Nxd5 16. Ne4) 15... exd4 $17 {[%emt 0:04:07]} 16. exd4 {[%emt 0:00:31]} Nce4 {[%emt 0:00:27]} 17. cxd5 {[%emt 0:13:33]} Nxc3 {[%emt 0:00:53]} (17... Bxd5 $6 18. Nxd5 Nxd5 19. Bxe4 Rxe4 20. Nf3 $11) 18. Bxc3 {[%emt 0:02:03]} Nxd5 {[%emt 0:00:46]} ({Better is} 18... Bxd5 $17 19. Bxd5 Qxd5) 19. Ba1 {[%emt 0:03:42]} Rc8 {[%emt 0:02:49]} 20. Nf3 {[%emt 0:03:45]} Bd7 {[%emt 0:19:34]} 21. Rc1 {[%emt 0:04:41]} Be6 {[%emt 0:01:05]} (21... Rxc1 $15 22. Qxc1 Be6) 22. a3 {[%emt 0:01:37]} ({White should play} 22. Rxc8 $11 Bxc8 23. Ne5) 22... Bh6 {[%emt 0:04:17]} (22... Qd7 {is interesting.} 23. Ne5 Qb5 24. Qd2 Qb3) 23. Rxc8 {[%emt 0:00:39]} Qxc8 {[%emt 0:00:32]} 24. Nd2 {[%emt 0:02:01] [#]} (24. Ne5 $11 {keeps the balance.}) 24... Nc3 $2 {[%emt 0:00:51][%mdl 8192]} (24... Qa6 $1 $17 25. Bb2 Qb5) 25. Bxc3 $18 {[%emt 0:03:37]} Qxc3 {[%emt 0:00:02]} 26. Nb1 {[%emt 0:00:46]} ({White has to play} 26. Ne4 $18 Qb3 27. Nf6+ Kf8 28. Qe2 (28. Nxh7+ $2 Kg7 $19)) 26... Qc4 $36 {[%emt 0:02:50][%mdl 2048] Black is in control. Black is much more active. The white rooks are badly placed.} 27. Re1 {[%emt 0:03:11]} Rd8 {[%emt 0:11:56]} 28. Re4 {[%emt 0:09:59]} (28. d5 $17 {keeps fighting.}) 28... Bf5 {[%emt 0:00:00]} 29. Bf1 {[%emt 0:01:24]} Qa2 {[%emt 0:02:01]} 30. Re1 {[%emt 0:02:49]} Bc2 {[%emt 0:01:52]} 31. Nc3 {[%emt 0:04:51]} (31. Qg4 $17 {only move.} Qd5 32. Qe2) 31... Qb3 $19 {[%emt 0:03:35]} (31... Qxa3 32. Qxc2 Rc8 33. Nb5 $18) (31... Bxd1 32. Nxa2 Rxd4 33. Nc3 $17) 32. Qf3 {[%emt 0:01:55]} Bd2 {[%emt 0:05:05]} ({Don't take} 32... Rxd4 33. Qf6 Rd7 34. Re8+ Bf8 35. Bh3 Qxa3 36. Bxd7 $18) (32... Rc8 $142 33. d5 Rxc3) 33. Qf6 $2 {[%emt 0:03:26] [#]} (33. Re7 {was the crucial defense.} Bxc3 34. d5) 33... Rf8 $1 {[%emt 0:03:02]} 34. Re7 {[%emt 0:01:12]} Bxc3 {[%emt 0:00:44]} 35. Qc6 {[%emt 0:01:20]} Bxd4 {[%emt 0:05:03]} (35... Qxa3 $2 {is the wrong capture.} 36. Re3 $19) 36. Bc4 {[%emt 0:01:12]} Qb1+ {[%emt 0:00:25]} 37. Kg2 {[%emt 0:00:27]} Bb3 {[%emt 0:00:22] ...Qc2 would be deadly.} 38. Re8 {[%emt 0:01:34]} (38. Qb5 $142 Ba2 39. Qxb1 Bxb1 40. Rd7) 38... Bxc4 {[%emt 0:00:25]} 39. Rxf8+ {[%emt 0:00:05]} Kxf8 {[%emt 0:00:39]} 40. Qxc4 {[%emt 0:01:05]} Qe4+ {[%emt 0:00:54]} 41. Kf1 {[%emt 0:30:39]} Qh1+ {[%emt 0:31:36]} 42. Ke2 {[%emt 0:00:08]} Bc5 {[%emt 0:00:21]} 43. Qc3 {[%emt 0:00:20]} Qe4+ {[%emt 0:00:33]} 44. Kf1 {[%emt 0:00:20]} Qd4 {[%emt 0:00:20][%csl Gc5][%cal Rd4f2]} 45. Qf3 {[%emt 0:00:20]} a5 {[%emt 0:00:40] And now ...Qb2 would win.} 46. h3 {[%emt 0:01:20]} Qa1+ {[%emt 0:00:14]} 47. Kg2 {[%emt 0:00:06]} Qxa3 {[%emt 0:00:13]} 48. Qf6 {[%emt 0:00:29]} Kg8 {[%emt 0:00:55] ( -> ...Qa2)} 49. h4 {[%emt 0:01:06]} Qb4 {[%emt 0:00:27] Black mates.} 50. h5 {[%emt 0:00:25]} Qd4 {[%emt 0:00:24]} ({Stronger than} 50... gxh5 51. Qg5+ Kh8 52. Qf6+ Kg8 53. Qg5+ Kh8 54. Qf6+ Kg8 $11) 51. Qf3 {[%emt 0:00:38]} gxh5 {[%emt 0:00:36][%cal Bg6h5,Bh5h4][%mdl 32]} 52. Qf5 {[%emt 0:00:51]} Qg4 {[%emt 0:00:51]} 53. Qf6 {[%emt 0:00:51]} a4 {[%emt 0:00:50][%cal Ba5a4,Ba4a3][%mdl 32]} 54. Qd8+ {[%emt 0:00:34]} Kg7 {[%emt 0:00:18]} 55. Qd3 {[%emt 0:00:22]} a3 {[%emt 0:00:48]} 56. Qc2 {[%emt 0:00:28]} h4 {[%emt 0:00:26]} 57. Qc3+ {[%emt 0:00:27]} Qd4 {[%emt 0:00:23]} 58. Qf3 {[%emt 0:00:13] [#]} Qxf2+ $1 {[%emt 0:00:07] Weighted Error Value: White=0.91/Black=0.46} 0-1

[Event "1st FIDE Olympiad DIS 2023"]
[Site "Belgrade"]
[Date "2023.01.31"]
[Round "2.8"]
[White "Zhukovskaya, Nina"]
[Black "Mekus, Manuela"]
[Result "*"]
[ECO "A24"]
[WhiteElo "1474"]
[BlackElo "1624"]
[Annotator "NA RC COMBH"]
[PlyCount "40"]
[EventDate "2023.01.30"]
[EventType "team-tourn"]
[EventCountry "SRB"]
[SourceTitle "playchess.com"]
[Source "ChessBase"]
[SourceQuality "1"]
[WhiteTeam "Kazakhstan"]
[BlackTeam "Germany"]
[WhiteTeamCountry "KAZ"]
[BlackTeamCountry "GER"]
[TimeControl "40/5400+30:1800+30"]

1. c4 {[%emt 0:00:04]} Nf6 {[%emt 0:00:09]} 2. Nc3 {[%emt 0:00:11]} g6 {[%emt 0:00:11]} 3. d3 {[%emt 0:00:12]} Bg7 {[%emt 0:00:19]} 4. Bd2 {[%emt 0:00:23]} e5 {[%emt 0:00:35]} 5. Rb1 {[%emt 0:00:28]} d6 {[%emt 0:00:26]} 6. g3 {[%emt 0:00:19]} c6 {[%emt 0:00:37]} 7. Bg2 {[%emt 0:00:12]} Nbd7 {[%emt 0:00:13]} 8. Nf3 {[%emt 0:00:13]} O-O {[%emt 0:00:07]} 9. O-O {[%emt 0:00:16]} Re8 {[%emt 0:04:01]} 10. b4 {[%emt 0:01:23]} d5 {[%emt 0:09:33]} 11. e3 {[%emt 0:07:37]} b6 {[%emt 0:06:51]} 12. Ne1 {[%emt 0:02:29]} Bb7 {[%emt 0:01:54]} 13. b5 {[%emt 0:04:40]} Nc5 {[%emt 0:02:49]} 14. bxc6 {[%emt 0:07:47]} Bxc6 {[%emt 0:02:12]} 15. d4 {[%emt 0:10:35]} exd4 {[%emt 0:04:07]} 16. exd4 {[%emt 0:00:31]} Nce4 {[%emt 0:00:27]} 17. cxd5 {[%emt 0:13:33]} Nxc3 {[%emt 0:00:53]} 18. Bxc3 {[%emt 0:02:03]} Nxd5 {[%emt 0:00:46]} 19. Ba1 {[%emt 0:03:42]} Rc8 {[%emt 0:02:49]} 20. Nf3 {[%emt 0:03:45]} Bd7 {[%emt 0:19:34]} *

[Event "1st FIDE Olympiad DIS 2023"]
[Site "Belgrade"]
[Date "2023.01.31"]
[Round "2.9"]
[White "Sarkar, Justin"]
[Black "Zambo, Zoltan Istvan"]
[Result "1-0"]
[ECO "B41"]
[WhiteElo "2345"]
[BlackElo "2301"]
[Annotator "TA"]
[PlyCount "93"]
[EventDate "2023.01.30"]
[EventType "team-tourn"]
[EventCountry "SRB"]
[SourceTitle "playchess.com"]
[Source "ChessBase"]
[SourceQuality "1"]
[WhiteTeam "United States"]
[BlackTeam "Hungary"]
[WhiteTeamCountry "USA"]
[BlackTeamCountry "HUN"]
[TimeControl "40/5400+30:1800+30"]

{[%evp 11,93,21,22,26,40,48,55,9,8,18,14,0,27,27,25,12,19,11,25,0,14,16,13,18,20,25,89,50,39,25,38,45,116,128,147,140,143,61,79,68,64,32,54,43,50,22,115,120,116,125,199,174,231,225,289,334,447,490,497,470,1018,977,1013,1003,1557,1400,1474,1444,1511,1513,2443,1097,1360,1359,2247,2194,1537,995,995,936,29969,29970,29987,29988]} 1. e4 {[%emt 0:00:25]} c5 {[%emt 0:00:28]} 2. Nf3 {[%emt 0:00:13]} e6 {[%emt 0:00:40]} 3. d4 {[%emt 0:01:37]} cxd4 {[%emt 0:01:14]} 4. Nxd4 {[%emt 0:00:06]} a6 {[%emt 0:00:53]} 5. c4 {[%emt 0:01:25]} Nf6 {[%emt 0:01:26]} 6. Nc3 {[%emt 0:00:18]} Bb4 {[%emt 0:00:40]} 7. Qd3 {[%emt 0:02:08] seems to push 7.Bd3 aside. B41: Sicilian: Kan Variation: 5 c4.} O-O {[%emt 0:01:18]} 8. e5 {[%emt 0:00:09]} Ne8 {[%emt 0:00:19]} (8... Ng4 9. Qg3 Qa5 10. Bf4 $16) 9. a3 {[%emt 0:11:23]} (9. Bf4 $14) 9... Bxc3+ $11 {[%emt 0:03:27]} 10. Qxc3 {[%emt 0:00:08]} d6 {[%emt 0:01:04] Black is weak on the dark squares} 11. Bf4 {[%emt 0:02:40]} dxe5 {[%emt 0:01:23]} (11... f6 $5 12. exd6 e5 $11) 12. Bxe5 {[%emt 0:00:04]} f6 {[%emt 0:00:16]} 13. Bg3 {[%emt 0:04:00]} e5 {[%emt 0:00:49]} 14. Nc2 {[%emt 0:00:23]} Nc6 {[%emt 0:00:51] [#]} 15. Be2 $146 {[%emt 0:09:06]} ({Predecessor:} 15. Bd3 Be6 16. O-O Rc8 17. f4 Qc7 18. fxe5 Nxe5 19. Bxe5 fxe5 20. Rxf8+ Kxf8 21. Bxh7 Bxc4 {½-½ Sarkar,J (2346)-Warakomski,T (2535) Warsaw Maciei Memorial blitz 2022 (9)}) 15... Qe7 {[%emt 0:18:39]} 16. O-O {[%emt 0:05:00]} f5 {[%emt 0:05:10]} 17. f3 $1 {[%emt 0:00:32]} f4 {[%emt 0:05:02]} 18. Bf2 {[%emt 0:00:14]} Bf5 {[%emt 0:01:49]} (18... Qg5 $11) 19. b4 {[%emt 0:16:49][%cal Bb2b4,Bb4b5][%mdl 32]} Qg5 {[%emt 0:06:24]} 20. b5 {[%emt 0:00:51]} Bh3 {[%emt 0:03:36][%csl Gh3][%cal Rg5g2]} 21. Ne1 {[%emt 0:00:18]} (21. bxc6 $2 Qxg2#) 21... Ne7 {[%emt 0:07:48]} ({Black should try} 21... Nd4 $14 22. Bxd4 exd4 23. Qxd4 Rd8) 22. Kh1 $16 {[%emt 0:01:07]} Bc8 {[%emt 0:05:54]} 23. Nd3 {[%emt 0:03:39]} Ng6 {[%emt 0:04:56]} 24. Rfe1 {[%emt 0:03:30]} (24. Nc5 $16) 24... Nf6 $14 {[%emt 0:03:55]} 25. Nc5 {[%emt 0:09:44]} e4 {[%emt 0:15:03][%mdl 64] [#] Prevents Bd3. Deflection} 26. Nxe4 {[%emt 0:01:22] White is more active.} Nxe4 {[%emt 0:00:09]} 27. fxe4 {[%emt 0:00:03] aiming for Rad1.} Bg4 $1 {[%emt 0:00:22]} 28. Bf1 {[%emt 0:04:56]} Rad8 {[%emt 0:06:51]} (28... f3 $11 {keeps the balance.} 29. g3 axb5) 29. bxa6 $16 {[%emt 0:03:48] Black is on the road to losing.} bxa6 {[%emt 0:00:07]} 30. c5 $36 {[%emt 0:00:07][%mdl 2048] Black is under strong pressure.} f3 {[%emt 0:01:26] [#]} (30... Ne5 $16) 31. g3 $1 $18 {[%emt 0:00:22]} (31. Bxa6 $2 fxg2+ 32. Kg1 Ne5 $19) 31... Ne5 {[%emt 0:01:09]} (31... Rde8 $142 32. c6 (32. Bxa6 Ne5 $18) 32... Ne5) 32. Rad1 {[%emt 0:06:31]} (32. Bxa6 $6 Qd2 33. Qxd2 (33. Qxe5 $2 Qxf2 34. Bf1 Rd2 $19) 33... Rxd2 $16) 32... Rxd1 {[%emt 0:01:12]} 33. Rxd1 {[%emt 0:00:03][%cal Od1d5] Threatens to win with Rd5!} Be6 {[%emt 0:00:48] Inhibits Rd5.} 34. h4 {[%emt 0:03:36]} (34. Bxa6 Ng4 35. Kg1 Qh5 $18) 34... Qh5 {[%emt 0:00:34]} 35. Rd6 {[%emt 0:00:09]} (35. Bxa6 Ng4 36. Kg1 Nf6 $18) 35... Bc8 {[%emt 0:01:07]} (35... Ba2 $142 36. Kg1 Qe8) 36. Rd5 {[%emt 0:03:35]} ({Inferior is} 36. Bxa6 Bxa6 37. Rxa6 Qg4 $11) 36... Re8 {[%emt 0:00:09]} 37. Bd4 {[%emt 0:00:23]} Qg4 {[%emt 0:00:21]} 38. Rxe5 {[%emt 0:03:31]} Rxe5 {[%emt 0:01:10]} 39. Bxe5 {[%emt 0:00:05] Strongly threatening Qb3+. A strong pair of Bishops.} Be6 {[%emt 0:00:05] Wards off Qb3} 40. Qd4 {[%emt 0:02:09]} (40. Bxa6 $2 {is a self mate.} Qh3+ 41. Kg1 Qg2#) 40... f2 {[%emt 0:01:11]} 41. Qd8+ {[%emt 0:31:32]} (41. Bxa6 $2 Qh3#) 41... Kf7 {[%emt 0:30:13]} 42. Qc7+ {[%emt 0:00:15]} (42. Bxa6 $2 Qh3#) 42... Ke8 {[%emt 0:00:06]} 43. Qc6+ {[%emt 0:00:00]} Bd7 {[%emt 0:00:00]} 44. Qa8+ {[%emt 0:00:00]} (44. Qxa6 Qxe4+ 45. Kh2 Bc6 46. Qc8+ (46. Bxg7 $2 Qh1#) 46... Kf7 47. Qc7+ Ke8 48. Qb8+ (48. Bxg7 $2 Qh1#) 48... Kf7 $18) 44... Kf7 {[%emt 0:00:00]} 45. Kh2 {[%emt 0:01:28] Qa7 is the strong threat.} (45. Bxa6 $2 Qh3#) 45... Be6 {[%emt 0:00:00]} 46. Qb7+ {[%emt 0:00:42]} (46. Bxa6 $2 Qh3#) 46... Ke8 {[%emt 0:00:00]} 47. Bd6 {[%emt 0:00:31] Weighted Error Value: White=0.14 (very precise) /Black=0.27 (precise)} 1-0

[Event "1st FIDE Olympiad DIS 2023"]
[Site "Belgrade"]
[Date "2023.01.31"]
[Round "2.9"]
[White "Banda Aaron"]
[Black "Rivas Cabrera, Edgar"]
[Result "*"]
[ECO "D05"]
[WhiteElo "1901"]
[BlackElo "1987"]
[Annotator "TA"]
[PlyCount "35"]
[EventDate "2023.01.30"]
[EventType "team-tourn"]
[EventCountry "SRB"]
[SourceTitle "playchess.com"]
[Source "ChessBase"]
[SourceQuality "1"]
[WhiteTeam "Zambia"]
[BlackTeam "Venezuela"]
[WhiteTeamCountry "ZAM"]
[BlackTeamCountry "VEN"]
[TimeControl "40/5400+30:1800+30"]

{[%evp 9,35,0,-5,-6,12,-20,-6,-8,-5,-14,-28,-18,-6,-10,-6,-5,-10,-88,-89,-88,-43,-36,-17,-55,-13,-15,-9,-18]} 1. d4 {[%emt 0:00:04]} d5 {[%emt 0:06:30]} 2. Nf3 {[%emt 0:00:40]} Nf6 {[%emt 0:00:34]} 3. e3 {[%emt 0:01:22]} e6 {[%emt 0:00:29]} 4. Be2 {[%emt 0:00:48]} c5 {[%emt 0:00:17]} 5. Nbd2 {[%emt 0:03:03]} Nc6 {[%emt 0:01:47]} 6. c3 {[%emt 0:03:04] D05: Colle System with ...e6.} Bd6 {[%emt 0:05:10]} 7. b3 {[%emt 0:03:09]} O-O {[%emt 0:10:47]} 8. Bb2 {[%emt 0:00:34] [#]} Qe7 $146 {[%emt 0:11:35]} ({Predecessor:} 8... b6 9. O-O Bb7 10. g3 Qe7 11. Nh4 Qc7 12. f4 Ne7 13. Ng2 Rac8 14. Rc1 Rfd8 {½-½ Mogstad,O (2170)-Torgersen,T (2129) NOR-ch 2016 email}) 9. a3 {[%emt 0:03:28]} Rd8 {[%emt 0:11:56]} 10. O-O {[%emt 0:01:00]} b6 {[%emt 0:05:32]} 11. Re1 {[%emt 0:07:11]} Bb7 {[%emt 0:00:09]} 12. Bd3 {[%emt 0:03:13]} Rac8 {[%emt 0:08:08]} 13. e4 {[%emt 0:03:24]} (13. c4 $11 {remains equal.}) 13... dxe4 {[%emt 0:00:13]} 14. Nxe4 {[%emt 0:01:26]} cxd4 {[%emt 0:00:40] [#] aiming for ...Nxe4.} 15. cxd4 {[%emt 0:04:10]} Nd5 {[%emt 0:02:25]} 16. Nxd6 {[%emt 0:06:03]} Rxd6 {[%emt 0:00:58]} 17. Rc1 {[%emt 0:01:16]} Qd8 {[%emt 0:06:03]} 18. Bb1 {[%emt 0:02:59] Weighted Error Value: White=0.21 (precise) /Black=0.13 (very precise)} *

[Event "1st FIDE Olympiad DIS 2023"]
[Site "Belgrade"]
[Date "2023.01.31"]
[Round "2.10"]
[White "Otero Munelo, Harlen Jose"]
[Black "Nkhupi Robert"]
[Result "1-0"]
[ECO "A16"]
[WhiteElo "2099"]
[BlackElo "1738"]
[Annotator "TA"]
[PlyCount "49"]
[EventDate "2023.01.30"]
[EventType "team-tourn"]
[EventCountry "SRB"]
[SourceTitle "playchess.com"]
[Source "ChessBase"]
[SourceQuality "1"]
[WhiteTeam "Venezuela"]
[BlackTeam "Zambia"]
[WhiteTeamCountry "VEN"]
[BlackTeamCountry "ZAM"]
[TimeControl "40/5400+30:1800+30"]

{[%evp 9,49,8,18,14,0,20,42,35,96,63,95,92,144,91,164,154,175,106,533,529,555,543,523,460,729,683,777,775,750,586,1426,1437,1527,1524,1422,1437,1413,1393,29997,29998,29998,29999]} 1. c4 {[%emt 0:00:04]} d6 {[%emt 0:00:28]} 2. Nc3 {[%emt 0:00:09]} Nf6 {[%emt 0:00:48]} 3. g3 {[%emt 0:00:09]} g6 {[%emt 0:01:21]} 4. Bg2 {[%emt 0:00:06]} c6 {[%emt 0:00:50]} 5. e3 {[%emt 0:00:08]} Bg7 {[%emt 0:01:05]} 6. Nge2 {[%emt 0:00:12] A16: English Opening: 1...Nf6 with ...d5.} e5 {[%emt 0:04:55]} 7. O-O {[%emt 0:00:16]} Be6 {[%emt 0:01:37]} 8. b3 {[%emt 0:00:14] White is slightly better.} Nbd7 {[%emt 0:01:21] [#]} (8... O-O $14) 9. d4 $146 {[%emt 0:00:24][%cal Bd2d4,Bd4e5,Be5d6][%mdl 32]} ({Predecessor:} 9. Bb2 O-O 10. f4 Re8 11. fxe5 dxe5 12. e4 Nc5 13. Qc2 Qb6 14. Kh1 Rad8 15. Nd1 {0-1 Lazorova,M (1486)-Miklasova,E (1641) Liptovsky Mikulas CupT U20 2015 (1.4)}) 9... Nb6 {[%emt 0:03:35]} 10. a4 {[%emt 0:01:24]} O-O {[%emt 0:03:24] [#]} (10... a5 $142) 11. Ba3 {[%emt 0:03:45]} ({White should play} 11. a5 $1 {[%cal Ra5b6]}) 11... Re8 {[%emt 0:01:04]} (11... a5 $16) 12. a5 $18 {[%emt 0:00:33]} Nc8 {[%emt 0:01:05] [#]} 13. a6 {[%emt 0:00:15]} ({Better is} 13. dxe5 $1 $18 {[%mdl 512]} dxe5 14. Qxd8 Rxd8 15. Rfd1) 13... Qd7 $2 {[%emt 0:04:23][%mdl 8192] Black cannot hold the game after this.} (13... Qc7 $16) 14. dxe5 {[%emt 0:01:11]} Nh5 {[%emt 0:12:03]} 15. axb7 {[%emt 0:01:28]} Qxb7 {[%emt 0:00:09]} 16. exd6 {[%emt 0:00:16]} Qd7 {[%emt 0:00:23]} (16... Nb6 $142 17. Nd4 Rac8) 17. Nd4 {[%emt 0:04:21]} Bxd4 {[%emt 0:06:52]} 18. Qxd4 {[%emt 0:01:07]} Rb8 {[%emt 0:00:36]} 19. Rab1 {[%emt 0:02:38]} Ng7 {[%emt 0:01:29]} 20. Ne4 {[%emt 0:00:33] And now Bb2 would win.} Nh5 {[%emt 0:09:53]} 21. Bb2 {[%emt 0:00:31][%csl Gb2][%cal Rd4h8]} f6 {[%emt 0:02:18]} 22. Nxf6+ {[%emt 0:05:29]} Nxf6 {[%emt 0:03:44] Black is weak on the dark squares} 23. Qxf6 {[%emt 0:00:11] White wants to mate with Qh8+.} Bf5 {[%emt 0:00:45]} 24. Qh8+ {[%emt 0:00:57]} Kf7 {[%emt 0:00:08]} 25. Qg7+ {[%emt 0:00:16] Weighted Error Value: White=0.38/Black=1.31} 1-0